fUSD/lending_fUSD_20240626
["ID","MTS","AMOUNT","RATE_DAILY","PERIOD"]
[330449351,1719421015696,-500.0,0.00043835,120]
[330449352,1719421015735,-500.0,0.00043835,120]
[330449353,1719421015770,-500.0,0.00043835,120]
[330449354,1719421015806,-500.0,0.00043835,120]
[330449355,1719421015843,-500.0,0.00043835,120]
[330449356,1719421015877,-500.0,0.00043835,120]
[330449357,1719421015912,-500.0,0.00043835,120]
[330449358,1719421015947,-500.0,0.00043835,120]
[330449359,1719421015984,-1927.14,0.00043835,120]
[330449360,1719421016020,-500.0,0.00043835,120]
[330449361,1719421016056,-502.31870394,0.00043835,120]
[330449362,1719421016093,-500.0,0.00043835,120]
[330449363,1719421016128,-1796.71,0.00043835,120]
[330449364,1719421016162,-524.123493,0.00043835,120]
[330449365,1719421016197,-555.19251642,0.00043835,120]
[330449366,1719421016231,-500.0,0.00043835,120]
[330449367,1719421016263,-500.0,0.00043835,120]
[330449368,1719421016295,-637.05,0.00043835,120]
[330449369,1719421016328,-591.52,0.00043835,120]
[330449370,1719421016362,-308.73126146,0.00043835,120]
[330449371,1719421016395,-500.0,0.00043835,120]
[330449372,1719421016431,-1259.25,0.00043835,120]
[330449373,1719421016466,-500.0,0.00043835,120]
[330449374,1719421016500,-718.33,0.00043835,120]
[330449375,1719421016533,-500.0,0.00043835,120]
[330449376,1719421016568,-500.0,0.00043835,120]
[330449377,1719421016602,-500.0,0.00043835,120]
[330449378,1719421016638,-1360.23,0.00043835,120]
[330449379,1719421016672,-500.0,0.00043835,120]
[330449380,1719421016706,-500.0,0.00043835,120]
[330449381,1719421016742,-724.96,0.00043835,120]
[330449382,1719421016777,-500.0,0.00043835,120]
[330449383,1719421016810,-500.0,0.00043835,120]
[330449384,1719421016844,-500.0,0.00043835,120]
[330449385,1719421016878,-500.0,0.00043835,120]
[330449386,1719421016912,-226.14658041,0.00043835,120]
[330449387,1719421016947,-500.0,0.00043835,120]
[330449388,1719421016981,-500.0,0.00043835,120]
[330449389,1719421017014,-1233.89,0.00043835,120]
[330449390,1719421017047,-2331.46,0.00043835,120]
[330449391,1719421017080,-781.98,0.00043835,120]
[330449392,1719421017116,-565.84,0.00043835,120]
[330449393,1719421017150,-500.0,0.00043835,120]
[330449394,1719421017183,-500.0,0.00043835,120]
[330449395,1719421017217,-1495.97,0.00043835,120]
[330449396,1719421017249,-500.0,0.00043835,120]
[330449397,1719421017281,-2041.16,0.00043835,120]
[330449398,1719421017313,-294.5533446,0.00043835,120]
[330449399,1719421017347,-500.0,0.00043835,120]
[330449400,1719421017382,-500.0,0.00043835,120]
[330449401,1719421017415,-946.04,0.00043835,120]
[330449402,1719421017452,-796.02,0.00043835,120]
[330449403,1719421017488,-500.0,0.00043835,120]
[330449404,1719421017524,-169.42029463,0.00043835,120]
[330449405,1719421017558,-500.0,0.00043835,120]
[330449406,1719421017597,-500.0,0.00043835,120]
[330449407,1719421017632,-560.74,0.00043835,120]
[330449408,1719421017670,-500.0,0.00043835,120]
[330449409,1719421017706,-500.0,0.00043835,120]
[330449410,1719421017741,-2360.28,0.00043835,120]
[330449411,1719421017780,-500.0,0.00043835,120]
[330449412,1719421017814,-1242.4,0.00043835,120]
[330449413,1719421017849,-500.0,0.00043835,120]
[330449414,1719421017883,-500.0,0.00043835,120]
[330449415,1719421017918,-500.0,0.00043835,120]
[330449416,1719421017953,-500.0,0.00043835,120]
[330449417,1719421017988,-859.94,0.00043835,120]
[330449418,1719421018022,-500.0,0.00043835,120]
[330449419,1719421018056,-783.82,0.00043835,120]
[330449420,1719421018090,-500.0,0.00043835,120]
[330449421,1719421018131,-153.19945827,0.00043835,120]
[330449422,1719421018165,-500.0,0.00043835,120]
[330449423,1719421018201,-500.0,0.00043835,120]
[330449424,1719421018236,-500.0,0.00043835,120]
[330449425,1719421018269,-500.0,0.00043835,120]
[330449426,1719421018301,-500.0,0.00043835,120]
[330449427,1719421018333,-560.96,0.00043835,120]
[330449428,1719421018368,-1053.76,0.00043835,120]
[330449429,1719421018401,-500.0,0.00043835,120]
[330449430,1719421018433,-784.35,0.00043835,120]
[330449431,1719421018467,-500.0,0.00043835,120]
[330449432,1719421018500,-500.0,0.00043835,120]
[330449433,1719421018534,-500.0,0.00043835,120]
[330449434,1719421018570,-1323.63,0.00043835,120]
[330449435,1719421018605,-528.18662501,0.00043835,120]
[330449436,1719421018801,-617.9134385,0.00043835,120]
[330449437,1719421018838,-2110.61,0.00043835,120]
[330449438,1719421018872,-500.0,0.00043835,120]
[330449439,1719421018904,-500.0,0.00043835,120]
[330449440,1719421018938,-150.0,0.00043835,120]
[330449441,1719421018973,-516.48,0.00043835,120]
[330449442,1719421019009,-500.0,0.00043835,120]
[330449443,1719421019046,-500.0,0.00043835,120]
[330449444,1719421019082,-500.0,0.00043835,120]
[330449445,1719421019117,-2773.5,0.00043835,120]
[330449446,1719421019152,-500.0,0.00043835,120]
[330449447,1719421019188,-500.0,0.00043835,120]
[330449448,1719421019222,-500.0,0.00043835,120]
[330449449,1719421019260,-500.0,0.00043835,120]
[330449450,1719421019297,-686.8,0.00043835,120]
[330449451,1719421019336,-500.0,0.00043835,120]
[330449452,1719421019373,-500.0,0.00043835,120]
[330449453,1719421019407,-500.0,0.00043835,120]
[330449454,1719421019441,-500.0,0.00043835,120]
[330449455,1719421019475,-1213.27,0.00043835,120]
[330449456,1719421019510,-500.0,0.00043835,120]
[330449457,1719421019544,-670.38,0.00043835,120]
[330449458,1719421019580,-500.0,0.00043835,120]
[330449459,1719421019617,-500.0,0.00043835,120]
[330449460,1719421019650,-500.0,0.00043835,120]
[330449461,1719421019684,-500.0,0.00043835,120]
[330449462,1719421019722,-500.0,0.00043835,120]
[330449463,1719421019755,-500.0,0.00043835,120]
[330449464,1719421019790,-500.0,0.00043835,120]
[330449465,1719421019823,-867.74,0.00043835,120]
[330449466,1719421019856,-1051.07,0.00043835,120]
[330449467,1719421019889,-500.0,0.00043835,120]
[330449468,1719421019921,-687.11,0.00043835,120]
[330449469,1719421019953,-500.0,0.00043835,120]
[330449470,1719421019986,-500.0,0.00043835,120]
[330449471,1719421020019,-753.11,0.00043835,120]
[330449472,1719421020052,-500.0,0.00043835,120]
[330449473,1719421020086,-500.0,0.00043835,120]
[330449474,1719421020121,-500.0,0.00043835,120]
[330449475,1719421020153,-500.0,0.00043835,120]
[330449476,1719421020190,-500.0,0.00043835,120]
[330449477,1719421020226,-500.0,0.00043835,120]
[330449478,1719421020261,-500.0,0.00043835,120]
[330449479,1719421020297,-500.0,0.00043835,120]
[330449480,1719421020335,-2291.18,0.00043835,120]
[330449481,1719421020374,-1599.56,0.00043835,120]
[330449482,1719421020410,-500.0,0.00043835,120]
[330449483,1719421020445,-500.0,0.00043835,120]
[330449484,1719421020479,-500.0,0.00043835,120]
[330449485,1719421020514,-1119.37,0.00043835,120]
[330449486,1719421020550,-631.94,0.00043835,120]
[330449487,1719421020586,-1902.3,0.00043835,120]
[330449488,1719421020623,-500.0,0.00043835,120]
[330449489,1719421020658,-500.0,0.00043835,120]
[330449490,1719421020697,-1280.38,0.00043835,120]
[330449491,1719421020735,-500.0,0.00043835,120]
[330449492,1719421020770,-634.34,0.00043835,120]
[330449493,1719421020808,-500.41259024,0.00043835,120]
[330449494,1719421020843,-184.70750167,0.00043835,120]
[330449495,1719421020878,-500.0,0.00043835,120]
[330449496,1719421020912,-754.48,0.00043835,120]
[330449497,1719421020945,-4309.15,0.00043835,120]
[330449498,1719421020980,-500.0,0.00043835,120]
[330449499,1719421021013,-952.44,0.00043835,120]
[330449500,1719421021047,-500.0,0.00043835,120]
[330449501,1719421021083,-500.23495386,0.00043835,120]
[330449502,1719421021118,-500.0,0.00043835,120]
[330449503,1719421021152,-500.0,0.00043835,120]
[330449504,1719421021188,-500.0,0.00043835,120]
[330449505,1719421021225,-709.79,0.00043835,120]
[330449506,1719421021261,-1151.75,0.00043835,120]
[330449507,1719421021297,-500.0,0.00043835,120]
[330449508,1719421021335,-184.77986791,0.00043835,120]
[330449509,1719421021376,-500.0,0.00043835,120]
[330449510,1719421021413,-500.0,0.00043835,120]
[330449511,1719421021451,-500.0,0.00043835,120]
[330449512,1719421021488,-1306.75,0.00043835,120]
[330449513,1719421021525,-500.0,0.00043835,120]
[330449514,1719421021561,-500.0,0.00043835,120]
[330449515,1719421021601,-503.58819917,0.00043835,120]
[330449516,1719421021638,-500.0,0.00043835,120]
[330449517,1719421021675,-1611.44,0.00043835,120]
[330449518,1719421021710,-500.0,0.00043835,120]
[330449519,1719421021760,-500.0,0.00043835,120]
[330449520,1719421021800,-500.0,0.00043835,120]
[330449521,1719421021837,-779.93,0.00043835,120]
[330449522,1719421021875,-500.0,0.00043835,120]
[330449523,1719421021913,-500.0,0.00043835,120]
[330449524,1719421021949,-500.0,0.00043835,120]
[330449525,1719421021985,-500.0,0.00043835,120]
[330449526,1719421022495,-500.0,0.00043835,120]
[330449527,1719421022532,-500.0,0.00043835,120]
[330449528,1719421022573,-500.0,0.00043835,120]
[330449529,1719421022615,-500.0,0.00043835,120]
[330449530,1719421022654,-500.0,0.00043835,120]
[330449531,1719421022698,-500.0,0.00043835,120]
[330449532,1719421022744,-500.0,0.00043835,120]
[330449533,1719421022784,-500.0,0.00043835,120]
[330449534,1719421022823,-611.06,0.00043835,120]
[330449535,1719421022866,-500.0,0.00043835,120]
[330449536,1719421022905,-2317.28,0.00043835,120]
[330449537,1719421022943,-500.0,0.00043835,120]
[330449538,1719421022981,-500.0,0.00043835,120]
[330449539,1719421023022,-500.0,0.00043835,120]
[330449540,1719421023060,-500.0,0.00043835,120]
[330449541,1719421023101,-500.0,0.00043835,120]
[330449542,1719421023138,-1272.87,0.00043835,120]
[330449543,1719421023174,-500.0,0.00043835,120]
[330449544,1719421023210,-609.18,0.00043835,120]
[330449545,1719421023249,-500.0,0.00043835,120]
[330449546,1719421023286,-500.0,0.00043835,120]
[330449547,1719421023320,-500.0,0.00043835,120]
[330449548,1719421023356,-500.0,0.00043835,120]
[330449549,1719421023393,-1745.12,0.00043835,120]
[330449550,1719421023428,-500.0,0.00043835,120]
[330449551,1719421023463,-500.0,0.00043835,120]
[330449552,1719421023498,-500.0,0.00043835,120]
[330449553,1719421023532,-500.0,0.00043835,120]
[330449554,1719421023568,-829.37,0.00043835,120]
[330449555,1719421023606,-500.0,0.00043835,120]
[330449556,1719421023642,-500.0,0.00043835,120]
[330449557,1719421023679,-1172.89,0.00043835,120]
[330449558,1719421023720,-1790.25,0.00043835,120]
[330449559,1719421023760,-934.43,0.00043835,120]
[330449560,1719421023800,-500.0,0.00043835,120]
[330449561,1719421023838,-500.0,0.00043835,120]
[330449562,1719421023878,-500.0,0.00043835,120]
[330449563,1719421023915,-500.0,0.00043835,120]
[330449564,1719421023953,-2177.01,0.00043835,120]
[330449565,1719421023995,-558.98,0.00043835,120]
[330449566,1719421024034,-740.85,0.00043835,120]
[330449567,1719421024073,-529.1,0.00043835,120]
[330449568,1719421024112,-719.73,0.00043835,120]
[330449569,1719421024150,-1287.88,0.00043835,120]
[330449570,1719421024186,-500.0,0.00043835,120]
[330449571,1719421024222,-500.0,0.00043835,120]
[330449572,1719421024256,-500.0,0.00043835,120]
[330449573,1719421024290,-520.22,0.00043835,120]
[330449574,1719421024326,-565.01,0.00043835,120]
[330449575,1719421024362,-500.0,0.00043835,120]
[330449576,1719421024402,-500.0,0.00043835,120]
[330449577,1719421024438,-500.0,0.00043835,120]
[330449578,1719421024472,-500.0,0.00043835,120]
[330449579,1719421024506,-1888.59,0.00043835,120]
[330449580,1719421024542,-849.63,0.00043835,120]
[330449581,1719421024578,-500.0,0.00043835,120]
[330449582,1719421024614,-500.0,0.00043835,120]
[330449583,1719421024647,-500.0,0.00043835,120]
[330449584,1719421024682,-500.0,0.00043835,120]
[330449585,1719421024718,-500.0,0.00043835,120]
[330449586,1719421024753,-500.0,0.00043835,120]
[330449587,1719421024787,-500.0,0.00043835,120]
[330449588,1719421024820,-500.0,0.00043835,120]
[330449589,1719421024868,-573.83,0.00043835,120]
[330449590,1719421024905,-1540.67,0.00043835,120]
[330449591,1719421024942,-500.0,0.00043835,120]
[330449592,1719421024978,-1825.98,0.00043835,120]
[330449593,1719421025014,-576.21,0.00043835,120]
[330449594,1719421025052,-3061.74,0.00043835,120]
[330449595,1719421025089,-1304.26,0.00043835,120]
[330449596,1719421025125,-500.0,0.00043835,120]
[330449597,1719421025162,-500.0,0.00043835,120]
[330449598,1719421025381,-500.0,0.00043835,120]
[330449599,1719421025418,-500.0,0.00043835,120]
[330449600,1719421025454,-1547.61,0.00043835,120]
[330449601,1719421025492,-500.0,0.00043835,120]
[330449603,1719421025529,-1192.32,0.00043835,120]
[330449604,1719421025565,-500.0,0.00043835,120]
[330449605,1719421025603,-548.62,0.00043835,120]
[330449606,1719421025637,-500.0,0.00043835,120]
[330449607,1719421025672,-500.0,0.00043835,120]
[330449608,1719421025709,-500.0,0.00043835,120]
[330449609,1719421025744,-951.02,0.00043835,120]
[330449610,1719421025780,-500.0,0.00043835,120]
[330449611,1719421025815,-500.0,0.00043835,120]
[330449612,1719421025850,-805.81,0.00043835,120]
[330449613,1719421025888,-500.0,0.00043835,120]
[330449614,1719421025922,-500.0,0.00043835,120]
[330449615,1719421025959,-500.0,0.00043835,120]
[330449616,1719421026000,-500.0,0.00043835,120]
[330449617,1719421026034,-500.0,0.00043835,120]
[330449618,1719421026068,-776.37,0.00043835,120]
[330449619,1719421026105,-658.92,0.00043835,120]
[330449620,1719421026140,-500.0,0.00043835,120]
[330449621,1719421026175,-3274.12,0.00043835,120]
[330449622,1719421026212,-500.0,0.00043835,120]
[330449623,1719421026247,-500.0,0.00043835,120]
[330449624,1719421026283,-2127.98,0.00043835,120]
[330449625,1719421026319,-500.0,0.00043835,120]
[330449626,1719421026356,-693.56,0.00043835,120]
[330449627,1719421026393,-500.0,0.00043835,120]
[330449628,1719421026429,-500.0,0.00043835,120]
[330449629,1719421026464,-500.0,0.00043835,120]
[330449630,1719421026500,-500.0,0.00043835,120]
[330449631,1719421026535,-500.0,0.00043835,120]
[330449632,1719421026573,-500.0,0.00043835,120]
[330449633,1719421026610,-758.07,0.00043835,120]
[330449634,1719421026644,-500.0,0.00043835,120]
[330449635,1719421026679,-1529.12,0.00043835,120]
[330449636,1719421026716,-500.0,0.00043835,120]
[330449637,1719421026753,-764.94,0.00043835,120]
[330449638,1719421026789,-1554.31,0.00043835,120]
[330449639,1719421026827,-500.0,0.00043835,120]
[330449640,1719421026862,-500.45092348,0.00043835,120]
[330449641,1719421026898,-500.0,0.00043835,120]
[330449642,1719421026934,-500.0,0.00043835,120]
[330449643,1719421026970,-928.13,0.00043835,120]
[330449644,1719421027004,-500.0,0.00043835,120]
[330449645,1719421027039,-500.0,0.00043835,120]
[330449646,1719421027073,-500.0,0.00043835,120]
[330449647,1719421027109,-500.0,0.00043835,120]
[330449648,1719421027144,-500.0,0.00043835,120]
[330449649,1719421027177,-1537.14,0.00043835,120]
[330449650,1719421027212,-500.0,0.00043835,120]
[330449651,1719421027247,-500.0,0.00043835,120]
[330449652,1719421027281,-500.0,0.00043835,120]
[330449653,1719421027316,-500.0,0.00043835,120]
[330449654,1719421027354,-500.0,0.00043835,120]
[330449655,1719421027390,-3508.96,0.00043835,120]
[330449656,1719421027426,-500.0,0.00043835,120]
[330449657,1719421027461,-1933.55,0.00043835,120]
[330449658,1719421027499,-1613.8,0.00043835,120]
[330449659,1719421027538,-500.0,0.00043835,120]
[330449660,1719421027578,-500.0,0.00043835,120]
[330449661,1719421027618,-524.03,0.00043835,120]
[330449662,1719421027661,-1873.3,0.00043835,120]
[330449663,1719421027704,-500.0,0.00043835,120]
[330449664,1719421027744,-1032.47,0.00043835,120]
[330449665,1719421027783,-259.80287977,0.00043835,120]
[330449666,1719421027822,-500.0,0.00043835,120]
[330449667,1719421027866,-747.37,0.00043835,120]
[330449668,1719421027904,-1348.56,0.00043835,120]
[330449669,1719421027942,-500.0,0.00043835,120]
[330449670,1719421027983,-721.49,0.00043835,120]
[330449671,1719421028022,-500.0,0.00043835,120]
[330449672,1719421028059,-500.0,0.00043835,120]
[330449673,1719421028096,-2016.7505008,0.00043835,120]
[330449674,1719421028136,-500.0,0.00043835,120]
[330449675,1719421028172,-500.0,0.00043835,120]
[330449676,1719421028207,-533.24,0.00043835,120]
[330449677,1719421028245,-2615.56,0.00043835,120]
[330449678,1719421028283,-500.0,0.00043835,120]
[330449679,1719421028320,-718.58,0.00043835,120]
[330449680,1719421028358,-3735.52,0.00043835,120]
[330449681,1719421028392,-500.0,0.00043835,120]
[330449682,1719421028428,-500.0,0.00043835,120]
[330449683,1719421028464,-500.0,0.00043835,120]
[330449684,1719421028499,-1399.08,0.00043835,120]
[330449685,1719421028535,-1892.58,0.00043835,120]
[330449686,1719421028569,-1217.99,0.00043835,120]
[330449687,1719421028607,-500.0,0.00043835,120]
[330449688,1719421028642,-500.0,0.00043835,120]
[330449689,1719421028675,-501.56839818,0.00043835,120]
[330449690,1719421028709,-722.57,0.00043835,120]
[330449691,1719421028744,-1840.42,0.00043835,120]
[330449692,1719421028778,-500.0,0.00043835,120]
[330449693,1719421028811,-1189.73,0.00043835,120]
[330449694,1719421028845,-500.0,0.00043835,120]
[330449695,1719421028880,-738.04,0.00043835,120]
[330449696,1719421028912,-262.90245429,0.00043835,120]
[330449697,1719421028948,-1595.46,0.00043835,120]
[330449698,1719421028989,-500.0,0.00043835,120]
[330449699,1719421029025,-609.62736087,0.00043835,120]
[330449700,1719421029066,-452.38573302,0.00043835,120]
[330449701,1719421029105,-3921.14,0.00043835,120]
[330449702,1719421029141,-304.40265768,0.00043835,120]
[330449703,1719421029177,-502.86648998,0.00043835,120]
[330449704,1719421029211,-500.0,0.00043835,120]
[330449705,1719421029247,-500.0,0.00043835,120]
[330449706,1719421029494,-500.0,0.00043835,120]
[330449707,1719421029532,-500.0,0.00043835,120]
[330449708,1719421029570,-1805.69,0.00043835,120]
[330449709,1719421029610,-305.26997778,0.00043835,120]
[330449710,1719421029648,-500.0,0.00043835,120]
[330449711,1719421029686,-500.0,0.00043835,120]
[330449712,1719421029726,-2199.62,0.00043835,120]
[330449713,1719421029763,-500.0,0.00043835,120]
[330449714,1719421029800,-1036.58,0.00043835,120]
[330449715,1719421029838,-500.0,0.00043835,120]
[330449716,1719421029878,-503.6,0.00043835,120]
[330449717,1719421029917,-500.0,0.00043835,120]
[330449718,1719421029962,-2351.67,0.00043835,120]
[330449719,1719421030001,-541.29,0.00043835,120]
[330449720,1719421030038,-500.0,0.00043835,120]
[330449721,1719421030074,-1916.47,0.00043835,120]
[330449722,1719421030114,-500.0,0.00043835,120]
[330449723,1719421030152,-616.90934209,0.00043835,120]
[330449724,1719421030188,-500.0,0.00043835,120]
[330449725,1719421030224,-3937.51,0.00043835,120]
[330449726,1719421030260,-500.0,0.00043835,120]
[330449727,1719421030297,-500.0,0.00043835,120]
[330449728,1719421030334,-304.40268129,0.00043835,120]
[330449729,1719421030369,-500.0,0.00043835,120]
[330449730,1719421030407,-500.0,0.00043835,120]
[330449731,1719421030445,-500.0,0.00043835,120]
[330449732,1719421030482,-2302.42,0.00043835,120]
[330449733,1719421030518,-500.0,0.00043835,120]
[330449734,1719421030553,-500.0,0.00043835,120]
[330449735,1719421030591,-591.93,0.00043835,120]
[330449736,1719421030630,-500.0,0.00043835,120]
[330449737,1719421030667,-500.28,0.00043835,120]
[330449738,1719421030707,-1287.11,0.00043835,120]
[330449739,1719421030745,-3583.75,0.00043835,120]
[330449740,1719421030782,-1047.87,0.00043835,120]
[330449741,1719421030819,-199.90941293,0.00043835,120]
[330449742,1719421030855,-500.0,0.00043835,120]
[330449743,1719421030889,-500.0,0.00043835,120]
[330449744,1719421030923,-504.56698267,0.00043835,120]
[330449745,1719421030958,-500.0,0.00043835,120]
[330449746,1719421030991,-500.0,0.00043835,120]
[330449747,1719421031025,-500.0,0.00043835,120]
[330449748,1719421031060,-500.0,0.00043835,120]
[330449749,1719421031095,-500.0,0.00043835,120]
[330449750,1719421031131,-1095.38,0.00043835,120]
[330449751,1719421031170,-2278.03,0.00043835,120]
[330449752,1719421031206,-500.0,0.00043835,120]
[330449753,1719421031241,-1440.26,0.00043835,120]
[330449754,1719421031275,-500.0,0.00043835,120]
[330449755,1719421031310,-5456.46,0.00043835,120]
[330449756,1719421031345,-1081.74,0.00043835,120]
[330449757,1719421031379,-1473.46,0.00043835,120]
[330449758,1719421031413,-500.0,0.00043835,120]
[330449759,1719421031447,-2848.24,0.00043835,120]
[330449760,1719421031480,-934.6,0.00043835,120]
[330449761,1719421031514,-500.0,0.00043835,120]
[330449762,1719421031549,-2298.22,0.00043835,120]
[330449763,1719421031583,-516.5745555,0.00043835,120]
[330449764,1719421031617,-503.92,0.00043835,120]
[330449765,1719421031657,-3330.24,0.00043835,120]
[330449766,1719421031694,-500.0,0.00043835,120]
[330449767,1719421031731,-500.0,0.00043835,120]
[330449768,1719421031767,-2920.71,0.00043835,120]
[330449769,1719421031800,-500.0,0.00043835,120]
[330449770,1719421031835,-500.0,0.00043835,120]
[330449771,1719421031868,-500.0,0.00043835,120]
[330449772,1719421031903,-1892.91,0.00043835,120]
[330449773,1719421031938,-501.24826947,0.00043835,120]
[330449774,1719421031971,-558.76,0.00043835,120]
[330449775,1719421032005,-500.0,0.00043835,120]
[330449776,1719421032040,-2673.16,0.00043835,120]
[330449777,1719421032074,-500.0,0.00043835,120]
[330449778,1719421032109,-504.46656644,0.00043835,120]
[330449779,1719421032147,-500.0,0.00043835,120]
[330449780,1719421032186,-500.0,0.00043835,120]
[330449781,1719421032224,-500.0,0.00043835,120]
[330449782,1719421032261,-1241.16,0.00043835,120]
[330449783,1719421032297,-976.78,0.00043835,120]
[330449784,1719421032331,-3091.38,0.00043835,120]
[330449785,1719421032365,-500.0,0.00043835,120]
[330449786,1719421032401,-1308.38,0.00043835,120]
[330449787,1719421032435,-500.0,0.00043835,120]
[330449788,1719421032470,-500.0,0.00043835,120]
[330449789,1719421032504,-500.0,0.00043835,120]
[330449790,1719421032539,-1753.47,0.00043835,120]
[330449791,1719421032574,-1650.95,0.00043835,120]
[330449792,1719421032610,-500.0,0.00043835,120]
[330449793,1719421032644,-1766.14,0.00043835,120]
[330449794,1719421032677,-524.1,0.00043835,120]
[330449795,1719421033062,-500.0,0.00043835,120]
[330449796,1719421033103,-500.0,0.00043835,120]
[330449797,1719421033140,-500.0,0.00043835,120]
[330449798,1719421033175,-1019.1,0.00043835,120]
[330449799,1719421033212,-500.0,0.00043835,120]
[330449800,1719421033247,-500.0,0.00043835,120]
[330449801,1719421033282,-500.0,0.00043835,120]
[330449802,1719421033318,-500.0,0.00043835,120]
[330449803,1719421033355,-500.0,0.00043835,120]
[330449804,1719421033391,-500.0,0.00043835,120]
[330449805,1719421033426,-500.0,0.00043835,120]
[330449806,1719421033460,-1822.22,0.00043835,120]
[330449807,1719421033494,-500.0,0.00043835,120]
[330449808,1719421033528,-500.0,0.00043835,120]
[330449809,1719421033564,-500.0,0.00043835,120]
[330449810,1719421033604,-500.0,0.00043835,120]
[330449811,1719421033644,-500.0,0.00043835,120]
[330449812,1719421033682,-500.0,0.00043835,120]
[330449813,1719421033719,-501.03,0.00043835,120]
[330449814,1719421033756,-500.0,0.00043835,120]
[330449815,1719421033791,-500.0,0.00043835,120]
[330449816,1719421033827,-500.0,0.00043835,120]
[330449817,1719421033862,-500.0,0.00043835,120]
[330449818,1719421033899,-500.0,0.00043835,120]
[330449819,1719421033935,-500.0,0.00043835,120]
[330449820,1719421033974,-500.0,0.00043835,120]
[330449821,1719421034015,-2738.53,0.00043835,120]
[330449822,1719421034053,-500.0,0.00043835,120]
[330449823,1719421034094,-500.0,0.00043835,120]
[330449824,1719421034129,-500.0,0.00043835,120]
[330449825,1719421034166,-500.0,0.00043835,120]
[330449826,1719421034204,-1369.42,0.00043835,120]
[330449827,1719421034242,-500.0,0.00043835,120]
[330449828,1719421034278,-500.0,0.00043835,120]
[330449829,1719421034312,-1374.62,0.00043835,120]
[330449830,1719421034348,-201.00977947,0.00043835,120]
[330449831,1719421034386,-500.0,0.00043835,120]
[330449832,1719421034420,-500.0,0.00043835,120]
[330449833,1719421034457,-500.0,0.00043835,120]
[330449834,1719421034493,-500.0,0.00043835,120]
[330449835,1719421034530,-1572.25,0.00043835,120]
[330449836,1719421034566,-1371.19,0.00043835,120]
[330449837,1719421034604,-500.0,0.00043835,120]
[330449838,1719421034646,-2270.17,0.00043835,120]
[330449839,1719421034683,-5000.0,0.00043835,120]
[330449840,1719421034725,-500.0,0.00043835,120]
[330449841,1719421034767,-1362.34,0.00043835,120]
[330449842,1719421034803,-500.0,0.00043835,120]
[330449843,1719421034838,-500.0,0.00043835,120]
[330449844,1719421034875,-500.0,0.00043835,120]
[330449845,1719421034913,-500.0,0.00043835,90]
[330449846,1719421034950,-1709.98,0.00043835,120]
[330449847,1719421034988,-500.0,0.00043835,120]
[330449848,1719421035024,-500.0,0.00043835,120]
[330449849,1719421035062,-599.13,0.00043835,120]
[330449850,1719421035099,-500.0,0.00043835,120]
[330449851,1719421035140,-1715.75,0.00043835,120]